Cogmind - Beta 14 @@@ ROGUE MODE // 2025.03.29 @ 15:51:03 Player: Beelzebelt Result: Destroyed by S-10 Pest with Light Assault Rifle Performance ------------- Evolutions (0) 0 Regions Visited (2) 400 Robots Destroyed (17) 85 Value Destroyed (309) 309 Prototype IDs (0) 0 Alien Tech Used (0) 0 Bonus (32) 32 TOTAL SCORE: 826 Bonus ------- Follower Combat Kills 32 Cogmind --------- Core Integrity 0/250 Matter 300/300 Energy 250/250 System Corruption 1% Temperature Cool (0) Movement Walking (190) Ox1 Location -10/Mines Parts ------- > --- POWER (1) -------- Ion Engine > --- PROPULSION (2) --- Aluminum Leg > --- UTILITY (2) ------ Small Storage Unit > --- WEAPON (2) ------- Light Assault Rifle Light Assault Rifle > --- INVENTORY (8) ---- Ion Engine Aluminum Leg Terrain Scan Processor Power Shielding Power Shielding Power Shielding Peak State ------------ > --- POWER ------------ Ion Engine > --- PROPULSION ------- Aluminum Leg Aluminum Leg > --- UTILITY ---------- Small Storage Unit Improved Terrain Scanner > --- WEAPON ----------- Assault Rifle Assault Rifle > --- INVENTORY -------- Ion Engine Light Ion Engine Compact Wheel Compact Wheel Improved Terrain Scanner Light Assault Rifle Light Assault Rifle Mining Laser [Rating: 10] Favorites ----------- Power Ion Engine Engine Ion Engine Propulsion Aluminum Leg Leg Aluminum Leg Utility Small Storage Unit Device Improved Terrain Scanner Storage Small Storage Unit Weapon Light Assault Rifle Ballistic Gun Light Assault Rifle Build | -11 -10 -10 ------- Run | Yrd Mat Min Slots Evolved . | . . . Power . | . . . Propulsion . | . . . Utility . | . . . Weapon . | . . . Parts Attached 18 | 7 7 4 Power 3 | 1 1 1 Engine 3 | 1 1 1 Core . | . . . Reactor . | . . . Propulsion 5 | 2 2 1 Treads . | . . . Leg 5 | 2 2 1 Wheel . | . . . Hover . | . . . Flight . | . . . Utility 5 | 2 2 1 Device 2 | 1 . 1 Storage 3 | 1 2 . Processor . | . . . Hackware . | . . . Protection . | . . . Artifact . | . . . Weapon 5 | 2 2 1 Energy Gun . | . . . Energy Cannon . | . . . Ballistic Gun 5 | 2 2 1 Ballistic Cannon . | . . . Launcher . | . . . Special Weapon . | . . . Impact Weapon . | . . . Slashing Weapon . | . . . Piercing Weapon . | . . . Special Melee Weapon . | . . . Unidentified Prototypes . | . . . Parts Lost 7 | . 5 2 Power . | . . . Propulsion 2 | . 1 1 Utility 2 | . 1 1 Weapon 3 | . 3 . Highest Loss Streak 3 | . 3 2 To Critical Strikes . | . . . Average Slot Usage (%) 97 | . 99 90 Engine 14 | . 14 14 Leg 27 | . 27 26 Device 13 | . 14 9 Storage 14 | . 14 14 Ballistic Gun 27 | . 28 24 Peak Build Rating 10 | 9 10 9 Average Rating 9 | 5 9 7 On Entrance 5 | . 9 6 Naked Turns . | . . . Heaviest Build 50 | 15 50 13 Greatest Support 20 | 20 20 20 Greatest Overweight (x) 2 | . 2 . Average Overweight (x) . | . . . Largest Inventory Capacity 20 | 8 20 8 Average Capacity 8 | 7 8 8 Most Carried 8 | 7 8 8 Average Carried 6 | 3 7 6 Final Capacity 8 | 8 8 8 Final Carried 8 | 7 8 6 Class Distribution -------------------- 78% | Mutant 21% | Scavenger-Mutant Dominant Class ---------------- Mutant | -10/Materials Scavenger-Mutant | -10/Mines Resources | -11 -10 -10 ----------- Run | Yrd Mat Min Matter Collected 577 | 239 295 43 Remotely . | . . . Salvage Created 458 | 35 384 39 Parts 35 | 8 24 3 Haulers Intercepted . | . . . Recyclers Shooed 2 | 1 1 . Parts Field Recycled . | . . . Retrieved Matter . | . . . Parts Self-Destructed . | . . . Prevented . | . . . Kills | -11 -10 -10 ------- Run | Yrd Mat Min Combat Hostiles Destroyed 13 | . 11 2 Guns 13 | . 11 2 Classes Destroyed 5 | 1 4 . Builder 1 | . 1 . Tunneler 2 | 2 . . Watcher 1 | . 1 . Swarmer 7 | . 5 2 Grunt 6 | . 6 . Best Kill Streak 6 | 2 6 2 Combat Bots Only 5 | . 5 2 Max Kills in Single Turn 1 | 1 1 1 Gunslinging . | . . . Exploded . | . . . Melee . | . . . Uniques/NPCs Destroyed . | . . . Combat | -11 -10 -10 -------- Run | Yrd Mat Min Hostile Shots Fired 166 | . 125 41 Missed 51 | . 43 8 Damage Taken 1093 | . 830 263 Core 254 | . 156 98 Absorbed by Shields . | . . . Core Remaining (%) 100 | 100 . . Volleys Fired 69 | 4 53 12 Largest 2 | 2 2 1 Hottest 40 | 40 40 20 Shots Fired 125 | 8 105 12 Gun 125 | 8 105 12 Cannon . | . . . Launcher . | . . . Special . | . . . Kinetic 125 | 8 105 12 Thermal . | . . . Explosive . | . . . Electromagnetic . | . . . Robot Hit Streak 7 | 7 6 6 Robot Miss Streak 5 | . 5 1 Penetration Max . | . . . Secondary Targets 2 | . 2 . Max Gunslinging Chain 1 | . 1 . Shots Hit Robots 73 | 7 57 9 Core Hits 29 | 2 22 5 Critical Kills . | . . . Critical Parts Destroyed 2 | . 2 . Critical Strikes 2 | . 2 . Destroy 2 | . 2 . Melee Attacks . | . . . Impact . | . . . Slashing . | . . . Piercing . | . . . Sneak Attacks . | . . . Combat Hostiles . | . . . Follow-up Attacks . | . . . Damage Inflicted 787 | 81 616 90 Guns 769 | 81 616 72 Cannons . | . . . Explosions . | . . . Melee . | . . . Ramming 18 | . . 18 Kinetic 769 | 81 616 72 Thermal . | . . . Explosive . | . . . Electromagnetic . | . . . Impact . | . . . Slashing . | . . . Piercing . | . . . Highest Corruption 1 | . 1 1 Average Corruption 1 | . 1 1 Corruption Purged . | . . . Corruption Blocked . | . . . Effects 3 | . 2 1 Message Errors 1 | . 1 . Heat Flow Errors 1 | . . 1 Energy Discharges 1 | . 1 . Overload Shots . | . . . Overflow Damage . | . . . Projectiles . | . . . Explosions . | . . . Melee . | . . . Knockbacks . | . . . Impact . | . . . Kinetic . | . . . Secondary . | . . . Self-Inflicted Damage . | . . . Shots . | . . . Rammed . | . . . Targets Rammed 10 | . . 10 Kicked 10 | . . 10 Crushed . | . . . Highest Temperature 278 | . 18 278 Average Temperature 61 | . 8 161 Received Heat Transfer 351 | . 351 . Siege Activations . | . . . Robots Corrupted . | . . . Combat Hostiles . | . . . Parts Fried . | . . . Impact Corruptions . | . . . Robots Melted . | . . . Combat Hostiles . | . . . Parts Melted . | . . . Heat Transferred . | . . . Parts Sabotaged . | . . . Parts Stolen . | . . . Parts Stripped . | . . . Power Chain Reactions . | . . . Alert | -11 -10 -10 ------- Run | Yrd Mat Min Peak Influence 251 | 10 251 203 Initial 30 | . 6 30 Average 93 | 2 99 129 Maximum Alert Level 1 | . 1 1 Low Security (%) 86 | 100 84 88 Level 1 13 | . 15 11 Level 2 . | . . . Level 3 . | . . . Level 4 . | . . . Level 5 . | . . . High Security . | . . . Max Security . | . . . Squads Dispatched 4 | . 3 1 Investigation 3 | . 3 . Extermination . | . . . Reinforcement . | . . . Assault 1 | . . 1 Garrison . | . . . Intercept . | . . . Searches Triggered . | . . . Construction Impeded . | . . . Haulers Reinforced . | . . . Active Scanning Responses . | . . . Cargo Convoy Interrupts . | . . . Stealth | -11 -10 -10 --------- Run | Yrd Mat Min Distress Signals . | . . . Communications Jammed . | . . . Distress Signals . | . . . Times Spotted 29 | . 18 11 Peak Tracking Total 5 | . 5 4 Tactical Retreats 2 | . . 2 Traps | -11 -10 -10 ------- Run | Yrd Mat Min Traps Triggered . | . . . Indirectly . | . . . Trap Hack Attempts . | . . . Triggered . | . . . Disarmed . | . . . Reprogrammed . | . . . Reused . | . . . Traps Extracted . | . . . Installed . | . . . Triggered . | . . . Machines | -11 -10 -10 ---------- Run | Yrd Mat Min Machines Disabled . | . . . Max in Single Turn . | . . . Machines Repaired . | . . . Machines Dismantled . | . . . Machines Sabotaged . | . . . Overloaded Fab Kills . | . . . Hacking | -11 -10 -10 --------- Run | Yrd Mat Min Machines Accessed 7 | . 7 . Terminals 5 | . 5 . Fabricators . | . . . Repair Stations . | . . . Recycling Units 2 | . 2 . Scanalyzers . | . . . Garrison Access . | . . . Total Hacks 21 | . 21 . Successful 11 | . 11 . Failed 10 | . 10 . Catastrophic 1 | . 1 . Database Lockouts . | . . . Manual 3 | . 3 . Terminals 14 | . 14 . Fabricators . | . . . Repair Stations . | . . . Recycling Units 7 | . 7 . Scanalyzers . | . . . Garrison Access . | . . . Terminal Hacks 6 | . 6 . Record 1 | . 1 . Emergency Access Points 1 | . 1 . Dispatch Records 1 | . 1 . Patrol Status 1 | . 1 . Recall Investigation 1 | . 1 . Zone Layout 1 | . 1 . Fabricator Hacks . | . . . Repair Station Hacks . | . . . Recycling Unit Hacks 5 | . 5 . Process 2 | . 2 . Report Inventory 2 | . 2 . Retrieve Matter 1 | . 1 . Scanalyzer . | . . . Garrison Access Hacks . | . . . Unauthorized Hacks . | . . . Terminals . | . . . Fabricators . | . . . Repair Stations . | . . . Recycling Units . | . . . Scanalyzers . | . . . Garrison Access . | . . . Data Cores Recovered . | . . . Used . | . . . Hacking Detections 7 | . 7 . Full Trace Events 5 | . 5 . Feedback Events 1 | . 1 . Corruption 1 | . 1 . Feedback Blocked . | . . . Robot Schematics Acquired . | . . . Robots Built . | . . . Authchips . | . . . Time . | . . . Total Robot Build Rating . | . . . Part Schematics Acquired . | . . . Parts Built . | . . . Authchips . | . . . Time . | . . . Total Part Build Rating . | . . . Parts Repaired . | . . . Time . | . . . Parts Recycled . | . . . Recycled Matter 326 | . 326 . Retrieved Matter 34 | . 34 . Retrieved Components . | . . . Parts Scanalyzed . | . . . Part Schematics Acquired . | . . . Parts Damaged . | . . . Bothacking | -11 -10 -10 ------------ Run | Yrd Mat Min Used RIF Installer . | . . . Robots Hacked . | . . . Non-combat . | . . . Combat . | . . . Robot Hacks Applied . | . . . Relay Couplers Released . | . . . Fabnet Peak Effective % . | . . . Robots Rewired . | . . . Allies Hacked . | . . . Hacks Repelled . | . . . Allies | -11 -10 -10 -------- Run | Yrd Mat Min Total Allies 1 | . . 1 Largest Group 1 | . . 1 Highest-Rated Group 31 | . . 31 Highest-Rated Ally 31 | . . 31 Total Orders . | . . . Ally Attacks 8 | . . 8 Total Damage 125 | . . 125 Kills 2 | . . 2 Allies Corrupted . | . . . Allies Melted . | . . . Intel | -11 -10 -10 ------- Run | Yrd Mat Min Robot Analysis Total . | . . . Derelict Logs Recovered . | . . . Drone Launches . | . . . Drone Recoveries . | . . . Exploration | -11 -10 -10 ------------- Run | Yrd Mat Min Turns Passed 784 | 86 577 121 Spaces Moved 447 | 51 331 65 Core 8 | 8 . . Treads . | . . . Legs 439 | 43 331 65 Wheels . | . . . Hover . | . . . Flight . | . . . Fastest Speed 50 | 50 120 120 Average Speed 119 | 109 121 120 Slowest Speed 260 | 120 260 120 Overloaded Moves . | . . . Propulsion Burnouts . | . . . Robots Hopped . | . . . Cave-ins Triggered . | . . . Exploration Rate (%) 22 | 4 47 17 Regions Visited 2 Branch Regions 1 Pre-discovered Areas . | . . . Known Exits Taken . | . . . Unknown Exits Taken 2 | 1 1 . Scrap Searched . | . . . Spaces Dug . | . . . Terrain Destroyed . | . . . Melee . | . . . Projectile . | . . . AOE . | . . . Terrain Rammed . | . . . Walls Destroyed . | . . . Machines Disabled . | . . . Actions | -11 -10 -10 --------- Run | Yrd Mat Min Total 577 | 70 415 92 Wait 9 | 2 7 . Move 445 | 50 330 65 Hop . | . . . Pick Up 16 | 7 9 . Fast Attach 9 | 7 1 1 Attach 3 | . 2 1 Detach . | . . . Swap 6 | . 4 2 Drop 10 | . 9 1 Fire 69 | 4 53 12 Melee . | . . . Ram . | . . . Kick 10 | . . 10 Crush . | . . . Escape Stasis . | . . . Rewire . | . . . Trap . | . . . Miscellaneous . | . . . Route ------- -11/Scrapyard -10/Materials -10/Mines History --------- Turn | Location | Event 2 | -11/Scrapyard | Met Revision 17 6 | -11/Scrapyard | Discovered new exit (range 16) 87 | -11/Scrapyard | Entered Materials 304 | -10/Materials | Build established: Mutant 385 | -10/Materials | Core integrity fell below 50% 421 | -10/Materials | Lost 3 parts (1n2w) 643 | -10/Materials | Discovered new exit (range 16) 664 | -10/Materials | Entered Mines 689 | -10/Mines | Met a Derelict testing a Signal Generator 775 | -10/Mines | Core integrity fell below 20% 785 | -10/Mines | Destroyed by S-10 Pest with Light Assault Rifle Last Messages --------------- 00696_ Dropped Ion Engine. 00697_ ALERT: Intercepting significant anomalous signal. Redirecting assault force. 00698_ Acquired 2 matter. 00706_ K-01 Serf collects debris. 00720_ K-01 Serf cleans the Laser Drill. 00735_ C-30 ARC: "LOCATED POTENTIAL SOURCE OF ANOMALOUS SIGNAL. NEUTRALIZING." 00735_ C-30 ARC bursts open, deploying its payload. 00735_ G-47 Trooper unfolds itself. 00735_ G-34 Mercenary unfolds itself. 00735_ M-13 Machinist unfolds itself. 00735_ Kicked K-01 Serf out of the way. 00771_ Kicked S-10 Pest out of the way. 00772_ Kicked S-10 Pest. 00774_ Kicked S-10 Pest out of the way. 00774_ Aluminum Leg destroyed. 00775_ Kicked S-10 Pest. 00776_ Imp. Terrain Scanner destroyed. 00777_ Kicked S-10 Pest. Map ----- +----------------------------------------------------+ | | | | | | | | | | | | | | | | | | | | | | | | | | | ?????????????????????????????????????????#???????? | | ????????????????????????????????????#?????????#??? | | ?????????????????????????????????????############? | | ?????????????????????#???????????#???# #? | | ??????????????????????????#?????#????# ## | | ????????????????????????#????????????# """ """ | | ???????????? ????#???????????????????# """ """ ## | | ??????????????????????????#####??????# """ """ #? | | ??????????????????????????? #??????# #? | | ?????????????????????###???# #?###### """ """ #? | | ????????????????????## #?# #?# """ """ #? | | ???????????????# ## ### ### """ """ #? | | ??????????????# s@% k *#### #? | | ?????????? s ########%#??# #? | | ?????????? #??????## ##?############? | | ???????????##### ### #??????### #???????##???? ? | | ???????????????????####??????## ##?????????????? | | ????????????????????????????## * ###???????????? | | ????????????????????????????# * ##?#????????? | | ????????????????????????????# =*= ##????????? | | ????????????????????????????# % #?#???#????? | | ????????????????????? & ##??????????? | | ??????????????????# #### ## #???????????? | | ??????????????????## ?????####?# #???????????? | | ????????????????????#?????????????? ##???????????? | | ???????????????????????????????????##????????????? | | ?????????????????????????????#???????????????????? | | ?????????????????????????????????????????? ??????? | | ?????????????????????????????????????????????????? | | ?????????????????????????????????????????????????? | | ?????????????????????????????????????????????????? | | ?????????????????????????????????????????????????? | | ?????????????????????????????????????????????????? | | ?????????????????????????????????????????????????? | | ?????????????????????????????????????????????????? | | ?????????????????????????????????????????????????? | | ?????????????????????????????????????????????????? | +----------------------------------------------------+ Best States ------------- Heat Dissipation 25 Energy Generation 10 Energy Capacity 250 Matter Stores 300 Matter Capacity 300 Sight Range 16 Terrain Scan Range 16 Terrain Scan Density 10 Evasion (%) 55 Item Schematics ----------------- None Robot Schematics ------------------ None Fabricated ------------ Nothing Alien Tech Used ----------------- None Achievements -------------- None Challenges ------------ None Game ------ Seed WaveCargoFrame Manual? 0 Play Time 00:13:03 Cumulative 3.9 hours Start 2025.03.29 @ 15:38:35 End 2025.03.29 @ 15:51:03 Sessions 1 Manual Loads 0 Difficulty Rogue Special Mode None Game No. 6 Rogue 6 Adventurer 0 Explorer 0 Win Type - Total 0 Types 0/0/0/0/0/0/0/0/0 Lore% 3 Gallery% 7 Achievement% 11 Wizard Run 0 Options --------- Layout 0 ASCII 0 Keyboard 1 Movement Numpad Keybinds 0 Fullscreen 1 Font 24/Terminus Map View 76x50 Zoom Use 0% Tactical HUD 1 Map Filters NONE Filters NONE Steam 0 RUN: 033b1a42-1e28-4070-8974-d0d4ac8a066e